bitfinex/quotes_ETHUSD_20250422
["timestamp","ask_amount","ask_price","bid_price","bid_amount"]
[1745286472906,6.3203103,1582.3,1582.1,0.34710091]
[1745286473073,13.42111473,1582.3,1582.1,0.34710091]
[1745286473275,0.7805,1582.3,1582.2,0.26504703]
[1745286473478,0.74229601,1582.3,1582.2,0.26504703]
[1745286473676,7.06221005,1582.3,1582.2,0.26504703]
[1745286474119,7.06221005,1582.3,1582.2,0.61214794]
[1745286475125,0.74229601,1582.3,1582.2,0.61214794]
[1745286475416,0.74229601,1582.3,1582.2,4.23062461]
[1745286475626,13.44331904,1582.6,1582.2,12.85075602]
[1745286475772,0.74229601,1582.5,1582.2,12.85075602]
[1745286476087,0.74229601,1582.5,1582.3,3.61214794]
[1745286476474,7.0614604,1582.5,1582.4,0.26504703]
[1745286476679,8.48002723,1582.5,1582.4,0.61214794]
[1745286478616,0.74229601,1582.5,1582.4,0.61214794]
[1745286479423,0.74229601,1582.5,1582.4,14.30383927]
[1745286479723,6.31731664,1583.0,1582.8,0.7537]
[1745286479923,6.31731664,1583.0,1582.8,4.37217667]
[1745286480084,6.31731664,1583.0,1582.9,0.26504703]
[1745286480288,0.8052,1583.1,1582.9,0.26504703]
[1745286480480,6.31672035,1583.1,1583.0,3.61847667]
[1745286481018,7.58003969,1583.1,1583.0,0.26504703]
[1745286481607,8.38523969,1583.1,1583.0,0.26504703]
[1745286481974,6.31771001,1582.9,1582.7,3.0]
[1745286482220,6.31727965,1583.0,1582.7,3.0]
[1745286482386,8.38540136,1583.1,1582.8,4.21747963]
[1745286482927,8.38540136,1583.1,1582.9,0.25210933]
[1745286483086,6.31711939,1583.0,1582.9,0.25210933]
[1745286483282,7.78737146,1583.0,1582.9,0.25210933]
[1745286484205,6.31711939,1583.0,1582.9,0.25210933]
[1745286484407,7.12208202,1583.1,1582.9,0.25210933]
[1745286484608,12.63388249,1583.1,1582.9,1.47301467]
[1745286484816,12.63395323,1583.1,1582.9,1.00580933]
[1745286484992,12.63395323,1583.1,1582.9,0.25210933]
[1745286485211,12.63395323,1583.1,1582.8,4.43707667]
[1745286485685,6.31688202,1583.1,1582.8,4.43707667]
[1745286486123,6.31715071,1583.0,1582.9,0.25180142]
[1745286487040,7.00291906,1583.0,1582.9,0.25180142]
[1745286487436,0.68576835,1583.0,1582.9,0.25180142]
[1745286487733,7.00288774,1583.0,1582.9,0.25180142]
[1745286488532,7.00288774,1583.0,1582.9,0.72822032]
[1745286489451,0.68576835,1583.0,1582.9,0.72822032]
[1745286489805,7.00288774,1583.0,1582.9,0.72822032]
[1745286490039,0.68576835,1583.0,1582.9,0.72822032]
[1745286490750,7.00288774,1583.0,1582.9,0.72822032]
[1745286491238,9.11706472,1583.0,1582.9,0.25180142]
[1745286491545,9.66706472,1583.0,1582.9,0.25180142]
[1745286491706,6.3183168,1582.7,1582.6,6.375]
[1745286491903,6.3183168,1582.7,1582.6,0.47798108]
[1745286492103,7.10023908,1582.8,1582.6,0.25188713]
[1745286492322,0.68576835,1582.7,1582.6,0.25188713]
[1745286493140,7.00408515,1582.7,1582.6,0.25188713]
[1745286494738,0.68576835,1582.7,1582.6,0.25188713]
[1745286495159,7.00408515,1582.7,1582.6,0.25188713]
[1745286495654,8.33629757,1582.7,1582.6,0.25188713]
[1745286495960,9.11849757,1582.7,1582.6,0.25188713]
[1745286496255,9.66849757,1582.7,1582.6,0.25188713]
[1745286496456,7.10171466,1582.4,1582.3,6.374]
[1745286496652,6.32009982,1582.3,1582.1,3.61847667]
[1745286496822,0.68576835,1582.2,1582.1,4.61845972]
[1745286497014,0.68576835,1582.2,1582.1,4.87073727]
[1745286497850,0.68576835,1582.2,1582.1,3.87075422]
[1745286497851,7.00608183,1582.2,1582.1,3.87075422]
[1745286498049,7.00608183,1582.2,1582.1,4.21786161]
[1745286498455,0.68576835,1582.2,1582.1,4.21786161]
[1745286498952,6.31900813,1582.6,1582.2,10.12813145]
[1745286499125,7.10073595,1582.7,1582.4,9.9378718]
[1745286499314,12.63715975,1582.7,1582.4,4.61226385]
[1745286499515,6.31871603,1582.6,1582.5,0.25227755]
[1745286500536,12.63772334,1582.6,1582.4,3.61847667]
[1745286500841,6.31911532,1582.5,1582.4,3.61847667]
[1745286501147,12.63778007,1582.6,1582.4,3.61847667]
[1745286501450,0.6816376,1582.5,1582.4,4.67078481]
[1745286501609,12.63790896,1582.6,1582.4,5.13786329]
[1745286501815,7.00075292,1582.5,1582.4,3.61847667]
[1745286502141,6.31974289,1582.4,1582.2,7.42647667]
[1745286502349,6.31974289,1582.4,1582.3,0.24433376]
[1745286502543,6.31911532,1582.5,1582.3,0.24433376]
[1745286502747,0.6816376,1582.4,1582.3,0.24433376]
[1745286502949,0.6816376,1582.4,1582.3,1.47952894]
[1745286503258,7.1002977,1582.8,1582.3,1.47952894]
[1745286503419,0.6816376,1582.7,1582.4,13.77003427]
[1745286503820,6.31871603,1582.6,1582.5,0.24433376]
[1745286504237,7.79975363,1582.6,1582.5,0.24433376]
[1745286504563,9.84343026,1582.6,1582.5,0.24433376]
[1745286504746,6.31951466,1582.4,1582.3,6.375]
[1745286505056,6.31951466,1582.4,1582.3,0.24431687]
[1745286505256,7.00115226,1582.4,1582.3,0.24431687]
[1745286505459,8.35055226,1582.4,1582.3,0.24431687]
[1745286505623,9.82781148,1582.4,1582.3,0.24431687]
[1745286505960,9.27781148,1582.4,1582.3,0.24431687]
[1745286506259,9.27781148,1582.4,1582.3,3.61847667]
[1745286506260,0.6816376,1582.4,1582.3,3.61847667]
[1745286506425,6.31911983,1582.5,1582.3,3.61847667]
[1745286506627,0.6816376,1582.4,1582.2,0.8322]
[1745286506850,7.00135941,1582.4,1582.2,0.8322]
[1745286507152,7.00115226,1582.4,1582.3,0.24419706]
[1745286507356,8.33320392,1582.4,1582.3,0.24419706]
[1745286507525,9.13260392,1582.4,1582.3,0.24419706]
[1745286507724,9.68260392,1582.4,1582.3,0.24419706]
[1745286508035,6.32031348,1582.2,1582.1,3.61847667]
[1745286508236,6.99955174,1582.2,1582.1,0.24422846]
[1745286508440,6.99955174,1582.2,1582.1,3.86270513]
[1745286508638,0.67923826,1582.2,1582.1,3.86270513]
[1745286508841,0.67923826,1582.2,1582.1,11.1308403]
[1745286509057,6.31886947,1582.6,1582.2,3.0]
[1745286509371,6.99840758,1582.5,1582.3,3.61847667]
[1745286509553,6.99840758,1582.5,1582.4,0.24422846]
[1745286510424,0.67923826,1582.5,1582.4,1.54757288]
[1745286510631,13.19791255,1582.7,1582.4,4.59303342]
[1745286510826,6.31809869,1582.8,1582.5,3.61847667]
[1745286511026,0.67923826,1582.7,1582.5,3.61847667]
[1745286511471,0.67923826,1582.7,1582.6,0.24397102]
[1745286513025,6.99755506,1582.7,1582.6,0.24397102]
[1745286513726,0.67923826,1582.7,1582.6,0.24397102]
[1745286516562,0.67923826,1582.7,1582.6,0.63021579]
[1745286517163,0.67923826,1582.7,1582.6,0.97630475]
[1745286517362,0.67923826,1582.7,1582.6,11.19040588]
[1745286517575,7.11627932,1583.1,1582.7,6.31798498]
[1745286517766,6.3175094,1583.0,1582.6,11.12700432]
[1745286517976,6.3175197,1582.9,1582.7,4.7311771]
[1745286518205,6.3175197,1582.9,1582.8,0.24397102]
[1745286520445,6.3175094,1583.0,1582.8,0.71507357]
[1745286520645,6.3175094,1583.0,1582.8,0.24397102]
[1745286520943,6.3175094,1583.0,1582.9,0.24397102]
[1745286521262,6.31687327,1583.1,1582.9,4.67784769]
[1745286521463,6.31687327,1583.1,1582.9,3.86244769]
[1745286521631,6.31687327,1583.1,1583.0,0.24397102]
[1745286522568,6.31723679,1583.0,1582.8,3.0]
[1745286522954,6.31692275,1583.1,1582.9,3.86213604]
[1745286523159,12.39648725,1583.2,1582.9,3.86213604]
[1745286523335,12.39648725,1583.2,1583.0,0.24365937]
[1745286523739,6.31575494,1583.4,1583.1,3.61847667]
[1745286524152,6.31575494,1583.4,1583.2,0.24357772]
[1745286524372,0.8007,1583.7,1583.3,4.43387667]
[1745286524571,6.31552355,1583.4,1583.3,4.43387667]
[1745286524872,6.31552355,1583.4,1583.3,3.61847667]
[1745286525261,6.31552355,1583.4,1583.3,3.86181538]
[1745286525770,6.31526324,1583.5,1583.3,3.86181538]
[1745286526367,7.11527046,1583.7,1583.3,11.23403899]
[1745286526539,13.42993568,1583.7,1583.3,11.0538579]
[1745286526739,7.11527046,1583.7,1583.3,4.67490963]
[1745286526977,6.31487888,1583.6,1583.3,4.67490963]
[1745286527177,0.8007,1583.7,1583.3,4.67490963]
[1745286527478,6.31488448,1583.6,1583.3,3.61847667]
[1745286528358,6.31456986,1583.7,1583.4,1.05824668]
[1745286528753,6.31473634,1583.6,1583.4,1.05824668]
[1745286529161,6.31473634,1583.6,1583.4,0.8154]
[1745286529356,6.31456986,1583.7,1583.4,0.8154]
[1745286529881,0.8007,1583.5,1583.2,0.8154]
[1745286530061,6.31672035,1583.1,1583.0,3.61847667]
[1745286530249,6.31711939,1583.0,1582.8,7.1734]
[1745286530451,6.31711939,1583.0,1582.8,6.8321401]
[1745286530680,6.31713961,1583.0,1582.8,6.8321401]
[1745286530922,6.31672035,1583.1,1582.9,3.61847667]
[1745286531171,7.11721767,1583.2,1582.9,3.61847667]
[1745286531378,0.68670093,1583.0,1582.9,4.66353835]
[1745286531575,6.31651767,1583.2,1582.9,4.66353835]
[1745286532169,0.68670093,1583.1,1582.9,4.66353835]
[1745286532649,0.68670093,1583.1,1583.0,0.8154]
[1745286532971,6.31637538,1583.2,1583.0,0.8154]
[1745286533177,0.68670093,1583.1,1583.0,0.8154]
[1745286533738,0.68670093,1583.1,1583.0,1.05829258]
[1745286533935,0.68670093,1583.1,1583.0,3.24289258]
[1745286534164,7.00342128,1583.1,1583.0,3.0]
[1745286534362,6.31751847,1582.9,1582.8,9.358]
[1745286534843,6.31751847,1582.9,1582.8,9.60100244]
[1745286535044,6.31728424,1583.0,1582.9,3.0]
[1745286535582,6.31751847,1582.9,1582.8,9.358]
[1745286536065,12.63472456,1583.0,1582.8,9.358]
[1745286536370,0.68670093,1582.9,1582.8,9.358]
[1745286536576,0.68670093,1582.9,1582.8,10.3648697]
[1745286536737,0.68670093,1582.9,1582.8,13.98334637]
[1745286537165,6.31715922,1583.0,1582.8,13.98334637]
[1745286537366,0.68923168,1582.9,1582.8,13.21971135]
[1745286538373,6.31696769,1583.1,1582.9,0.7972]
[1745286538509,0.68923168,1583.0,1582.9,0.7972]
[1745286538722,6.3160431,1583.3,1582.9,10.11444445]
[1745286538723,7.0977431,1583.3,1582.9,10.11444445]
[1745286538920,0.68923168,1583.2,1583.1,3.61847667]
[1745286539613,0.68923168,1583.2,1583.1,13.17863715]
[1745286539784,6.31537175,1583.5,1583.2,3.0]
[1745286539969,6.31537175,1583.5,1583.3,3.61847667]
[1745286540302,7.09662822,1583.6,1583.3,4.28663977]
[1745286540600,7.09662822,1583.6,1583.4,0.24346453]
[1745286540780,6.31512472,1583.5,1583.4,0.24346453]
[1745286540980,12.63055193,1583.5,1583.3,7.28663977]
[1745286541183,12.63054562,1583.5,1583.3,7.28663977]
[1745286541898,12.63054562,1583.5,1583.3,4.28663977]
[1745286541899,6.31552355,1583.4,1583.3,4.28663977]
[1745286542284,7.09662015,1583.6,1583.3,4.53021836]
[1745286542688,7.09662015,1583.6,1583.3,4.28663977]
[1745286543414,6.31524638,1583.5,1583.3,4.28663977]
[1745286544600,12.63066859,1583.5,1583.3,4.28663977]
[1745286545408,12.63066509,1583.5,1583.3,4.28663977]
[1745286545614,6.31552355,1583.4,1583.3,4.28663977]
[1745286545806,6.31592244,1583.3,1583.2,6.358]
[1745286546113,6.31816272,1582.8,1582.6,4.41567667]
[1745286546333,6.31816272,1582.8,1582.4,6.31936477]
[1745286546334,6.31871603,1582.6,1582.4,4.0975726]
[1745286546510,6.31965598,1582.4,1582.2,3.61847667]
[1745286546680,6.32031348,1582.2,1582.1,30.79647667]
[1745286546876,0.69309318,1582.2,1582.1,9.96247667]
[1745286547297,7.01340666,1582.2,1582.1,6.344]
[1745286547517,0.69309318,1582.2,1582.1,6.344]
[1745286547683,0.69309318,1582.2,1582.1,9.96247667]
[1745286548075,0.69309318,1582.2,1582.1,13.9657801]
[1745286548321,12.64048445,1582.3,1582.1,9.344]
[1745286548605,0.69309318,1582.2,1582.1,9.344]
[1745286549611,7.10101003,1582.5,1582.1,16.89944378]
[1745286549807,0.69309318,1582.2,1582.1,19.58405894]
[1745286550001,7.10101003,1582.5,1582.1,23.20253561]
[1745286550203,0.69309318,1582.2,1582.1,23.20253561]
[1745286550388,7.10101003,1582.5,1582.1,23.54838371]
[1745286550589,0.69309318,1582.2,1582.1,23.54838371]
[1745286550812,7.10101003,1582.5,1582.1,23.54838371]
[1745286551000,0.69309318,1582.2,1582.1,23.54838371]
[1745286551201,7.10101003,1582.5,1582.1,23.54838371]
[1745286551506,6.31891883,1582.6,1582.3,3.61847667]
[1745286551717,7.66079472,1582.6,1582.3,3.61847667]
[1745286551901,7.01230118,1582.5,1582.3,3.61847667]
[1745286552490,0.69309318,1582.5,1582.3,3.61847667]
[1745286552717,0.69309318,1582.5,1582.3,3.68166856]
[1745286553486,0.69309318,1582.5,1582.3,10.00143797]
[1745286553685,7.09985871,1582.7,1582.4,3.0]
[1745286553881,6.31882312,1582.6,1582.4,3.0]
[1745286554095,6.99939438,1582.6,1582.4,3.0]
[1745286554820,0.68057126,1582.6,1582.4,3.0]
[1745286555316,0.68057126,1582.5,1582.4,3.0]
[1745286555614,0.7813,1582.7,1582.4,3.0]
[1745286555821,6.32031089,1582.3,1582.1,6.80982232]
[1745286555976,6.32031348,1582.2,1582.1,9.344]
[1745286556177,7.00088474,1582.2,1582.1,12.96247667]
[1745286556611,0.68057126,1582.2,1582.1,19.28318964]
[1745286557016,0.7813,1582.7,1582.1,12.96247667]
[1745286557017,6.3196498,1582.4,1582.1,12.96247667]
[1745286557222,0.68057126,1582.2,1582.1,12.96247667]
[1745286557382,12.63952323,1582.4,1582.1,12.96247667]
[1745286557715,7.00060023,1582.3,1582.1,12.96247667]
[1745286558336,7.00060023,1582.3,1582.1,9.96247667]
[1745286558695,0.68057126,1582.3,1582.1,16.34609335]
[1745286558923,0.68057126,1582.3,1582.2,10.08941348]
[1745286559111,0.68057126,1582.3,1582.2,3.7691]
[1745286559434,6.31894642,1582.6,1582.3,6.31985249]
[1745286559585,6.31853848,1582.7,1582.4,3.61847667]
[1745286559782,0.68057126,1582.6,1582.4,3.61847667]
[1745286560028,6.31889157,1582.6,1582.4,3.61847667]
[1745286560314,0.68057126,1582.5,1582.4,6.61847667]
[1745286560922,0.68057126,1582.5,1582.4,7.09667713]
[1745286561719,6.31877769,1582.6,1582.4,7.09667713]
[1745286562015,0.68057126,1582.5,1582.4,7.09667713]
[1745286563487,6.31844722,1582.7,1582.4,7.81266389]
[1745286563823,0.68057126,1582.6,1582.4,7.81266389]
[1745286564006,0.68057126,1582.6,1582.4,7.87585064]
[1745286564198,6.31844722,1582.7,1582.4,7.87585064]
[1745286564715,0.68057126,1582.6,1582.4,7.81266389]
[1745286565017,7.09949681,1582.8,1582.4,14.19527505]
[1745286565214,0.68057126,1582.5,1582.4,14.13208826]
[1745286565396,7.09949681,1582.8,1582.4,14.37159205]
[1745286565596,0.68057126,1582.7,1582.4,14.37159205]
[1745286565929,6.99903569,1582.7,1582.4,14.13208826]
[1745286566123,0.68057126,1582.7,1582.5,6.31910686]
[1745286566309,0.68057126,1582.7,1582.5,8.26086207]
[1745286566709,0.68057126,1582.7,1582.5,1.94175521]
[1745286566886,0.68057126,1582.7,1582.5,8.26084099]
[1745286567285,0.68057126,1582.7,1582.6,13.77657586]
[1745286567619,0.7781,1583.0,1582.7,3.0]
[1745286567620,7.09526381,1583.0,1582.7,3.0]
[1745286568500,12.39698084,1583.1,1582.8,3.61847667]
[1745286568701,7.09458937,1583.2,1582.8,9.93611653]
[1745286568922,6.31648937,1583.2,1582.9,0.7762]
[1745286569628,12.63312067,1583.2,1582.9,1.25607083]
[1745286569793,6.31648937,1583.2,1582.9,1.25607083]
[1745286570521,6.31652302,1583.2,1583.0,3.61847667]
[1745286570707,6.31605093,1583.3,1583.0,3.61847667]
[1745286572629,6.31605093,1583.3,1583.0,9.93549261]
[1745286572930,7.09385237,1583.4,1583.1,3.0]
[1745286573545,6.31526234,1583.5,1583.1,3.0]
[1745286573546,6.31526234,1583.5,1583.1,9.37982598]
[1745286573707,6.31526234,1583.5,1583.2,3.61847667]
[1745286573907,13.94804547,1583.5,1583.2,3.61847667]
[1745286574107,7.63259857,1583.5,1583.2,3.61847667]
[1745286574646,13.94810158,1583.5,1583.2,3.61847667]
[1745286574841,13.94807165,1583.5,1583.2,3.61847667]
[1745286575029,6.31526234,1583.5,1583.2,3.61847667]
[1745286575229,13.17303522,1583.6,1583.3,0.06315479]
[1745286575545,12.39493522,1583.6,1583.4,3.61847667]
[1745286575718,6.08,1583.6,1583.4,3.61847667]
[1745286576437,0.68283701,1583.5,1583.4,3.61847667]
[1745286577011,6.99796173,1583.5,1583.4,3.61847667]
[1745286578309,6.99796173,1583.5,1583.3,6.80873972]
[1745286578545,0.7897,1583.4,1583.0,4.40107667]
[1745286578744,6.31616022,1583.3,1583.0,10.71818142]
[1745286578952,7.00832148,1583.3,1583.0,4.40107667]
[1745286579445,7.00832148,1583.3,1583.0,11.18224073]
[1745286579612,7.00832148,1583.3,1583.0,4.86512641]
[1745286580009,7.00832148,1583.3,1583.0,11.18221781]
[1745286580966,7.00832148,1583.3,1583.0,4.86512641]
[1745286580967,6.3164735,1583.2,1583.0,4.86512641]
[1745286581143,12.63316964,1583.2,1583.0,4.86512641]
[1745286581319,6.3164735,1583.2,1583.0,4.86512641]
[1745286581650,0.69216126,1583.1,1583.0,7.86512641]
[1745286582124,0.69216126,1583.1,1583.0,8.10433971]
[1745286582622,0.69216126,1583.1,1583.0,7.32173971]
[1745286583752,0.69216126,1583.1,1583.0,7.08252641]
[1745286587062,0.69216126,1583.1,1583.0,7.32205115]
[1745286587452,0.69216126,1583.1,1583.0,7.38521569]
[1745286587652,0.69216126,1583.1,1583.0,7.32205115]
[1745286587848,7.00888161,1583.1,1583.0,7.32205115]
[1745286588059,9.10291712,1583.1,1583.0,0.23952474]
[1745286588235,6.31751847,1582.9,1582.8,9.95047667]
[1745286588601,1.33253551,1583.1,1582.8,16.26824728]
[1745286588726,0.69216126,1583.0,1582.9,0.23978485]
[1745286589124,12.6331444,1583.2,1582.9,4.06028485]
[1745286589125,6.31643925,1583.2,1582.9,4.06028485]
[1745286589327,13.39226119,1583.5,1583.1,9.93508235]
[1745286589940,13.39226119,1583.5,1583.2,0.23963169]
[1745286590138,6.31560708,1583.4,1583.2,0.23963169]
[1745286590630,12.63141306,1583.4,1583.1,3.61847667]
[1745286590830,6.31560708,1583.4,1583.1,3.61847667]
[1745286591436,0.69216126,1583.3,1583.1,3.61847667]
[1745286591630,6.31560708,1583.4,1583.2,0.23976044]
[1745286591935,0.69216126,1583.3,1583.2,0.23976044]
[1745286592158,6.31560708,1583.4,1583.2,0.23976044]
[1745286592359,0.6920281,1583.3,1583.2,0.23976044]
[1745286592666,6.31560708,1583.4,1583.2,0.23976044]
[1745286592887,7.00795054,1583.3,1583.2,0.23976044]
[1745286596449,0.6920281,1583.3,1583.2,0.5860373]
[1745286596757,7.07680836,1583.5,1583.2,0.64919367]
[1745286596951,0.6920281,1583.4,1583.2,0.64919367]
[1745286597156,0.6920281,1583.4,1583.3,0.5860373]
[1745286597657,7.00755165,1583.4,1583.3,0.5860373]
[1745286597989,9.15203765,1583.4,1583.3,0.5860373]
[1745286598151,9.15203765,1583.4,1583.3,0.23976044]
[1745286599768,7.00755165,1583.4,1583.3,0.23976044]
[1745286599973,7.00755165,1583.4,1583.3,0.58638732]
[1745286601003,7.81975165,1583.4,1583.3,0.58638732]
[1745286601135,7.81975165,1583.4,1583.3,0.23976044]
[1745286602987,8.36975165,1583.4,1583.3,0.23976044]
[1745286603168,0.8122,1583.0,1582.6,3.61847667]
[1745286603343,6.31807897,1582.8,1582.6,3.61847667]
[1745286603575,7.0103449,1582.7,1582.5,27.145]
[1745286603778,6.31871603,1582.6,1582.5,27.145]
[1745286604073,7.1305168,1582.7,1582.5,27.145]
[1745286604238,0.6920281,1582.6,1582.5,27.145]
[1745286604437,13.44911918,1582.7,1582.5,30.76347667]
[1745286604643,0.6920281,1582.6,1582.5,30.76347667]
[1745286604841,7.1305168,1582.7,1582.5,30.76347667]
[1745286604842,13.44914023,1582.7,1582.5,30.76347667]
[1745286605078,7.01074413,1582.6,1582.5,30.76347667]
[1745286605448,0.6920281,1582.6,1582.5,30.76347667]
[1745286605653,0.6920281,1582.6,1582.5,9.93647667]
[1745286605853,7.1305168,1582.7,1582.5,9.93647667]
[1745286606153,0.6920281,1582.6,1582.5,9.93647667]
[1745286606398,13.44917766,1582.7,1582.5,9.93647667]
[1745286606688,0.6920281,1582.6,1582.5,9.93647667]
[1745286607047,7.1305168,1582.7,1582.5,9.93647667]
[1745286607247,0.6856351,1582.6,1582.5,9.93647667]
[1745286607446,7.1305168,1582.7,1582.5,9.93647667]
[1745286607647,0.6856351,1582.6,1582.5,9.93647667]
[1745286607879,7.1305168,1582.7,1582.5,9.93647667]
[1745286608079,0.6856351,1582.6,1582.5,9.93647667]
[1745286608263,0.6856351,1582.6,1582.5,21.01093493]
[1745286608468,6.31767783,1582.9,1582.5,27.33005025]
[1745286608744,12.63558074,1582.9,1582.7,3.61847667]
[1745286608950,6.31791761,1582.8,1582.7,3.61847667]
[1745286609153,6.31732751,1583.0,1582.7,4.40207667]
[1745286609474,6.31749381,1583.0,1582.8,3.0]
[1745286609669,6.31751847,1582.9,1582.8,3.0]
[1745286609876,6.31751847,1582.9,1582.7,4.40207667]
[1745286610956,6.31751847,1582.9,1582.7,4.46525137]
[1745286611591,12.63496252,1583.0,1582.7,4.46525137]
[1745286611790,12.63490932,1583.0,1582.7,4.46525137]
[1745286612088,6.31770368,1582.9,1582.7,4.46525137]
[1745286612306,6.31770368,1582.9,1582.7,4.40207667]
[1745286612683,6.31791761,1582.8,1582.7,7.40207667]
[1745286612883,6.31770368,1582.9,1582.7,4.40207667]
[1745286612884,12.63553543,1582.9,1582.7,4.40207667]
[1745286613187,12.63553543,1582.9,1582.7,3.61847667]
[1745286613503,6.31791761,1582.8,1582.7,3.61847667]
[1745286613882,6.3183168,1582.7,1582.6,3.7836]
[1745286614350,6.31791761,1582.8,1582.6,3.0]
[1745286614516,12.6355465,1582.9,1582.6,3.06317929]
[1745286615112,6.31773675,1582.9,1582.7,3.85321242]
[1745286616102,1.52322448,1583.1,1582.7,4.40207667]
[1745286616279,7.12751576,1583.1,1582.7,4.46525593]
[1745286616678,7.12751576,1583.1,1582.8,0.23459326]
[1745286616878,6.31735504,1583.0,1582.8,0.23459326]
[1745286617074,6.31751847,1582.9,1582.7,4.40207667]
[1745286617276,12.63481586,1583.0,1582.7,4.40207667]
[1745286617477,6.31791761,1582.8,1582.7,3.61847667]
[1745286617778,12.63547472,1582.9,1582.7,3.84941093]
[1745286618006,6.31766709,1582.9,1582.7,0.23093426]
[1745286618217,6.31766709,1582.9,1582.8,0.23093426]
[1745286619190,6.31736994,1583.0,1582.8,0.23093426]
[1745286619923,7.12736783,1583.1,1582.8,0.23093426]
[1745286619924,6.3164949,1583.2,1582.8,10.71977709]
[1745286620282,6.31672888,1583.1,1582.9,0.23081936]
[1745286621126,6.31672888,1583.1,1582.8,12.42377095]
[1745286621328,6.3164949,1583.2,1583.0,3.61847667]
[1745286621829,6.31672035,1583.1,1583.0,3.61847667]
[1745286621974,6.31672035,1583.1,1583.0,3.84933633]
[1745286622174,12.6331227,1583.2,1583.0,3.84933633]
[1745286622426,6.31672035,1583.1,1583.0,0.23085966]
[1745286622714,6.31672035,1583.1,1582.9,3.61847667]
[1745286622922,12.63315656,1583.2,1582.9,3.61847667]
[1745286623120,6.31680311,1583.1,1582.9,3.61847667]
[1745286623681,6.31711939,1583.0,1582.8,1.24775133]
[1745286623918,6.31711939,1583.0,1582.8,4.24775133]
[1745286624311,6.31692861,1583.1,1582.9,0.23101987]
[1745286624522,6.31692861,1583.1,1582.9,3.61847667]
[1745286624827,6.31648393,1583.2,1582.9,3.61847667]
[1745286625116,13.44285249,1583.3,1583.0,0.23099979]
[1745286625316,6.31634669,1583.2,1583.0,0.23099979]
[1745286625607,6.31634669,1583.2,1582.9,11.35426994]
[1745286626315,7.12665151,1583.3,1582.9,11.35426994]
[1745286626316,7.12665151,1583.3,1583.0,9.317059]
[1745286626622,6.31638949,1583.2,1583.0,3.0]
[1745286626828,6.31638949,1583.2,1583.1,0.23112147]
[1745286627320,12.63299774,1583.2,1583.0,3.0]
[1745286627495,6.31672035,1583.1,1583.0,3.0]
[1745286627989,6.31672035,1583.1,1583.0,3.23122362]
[1745286628317,6.31638949,1583.2,1583.0,3.23122362]
[1745286628623,6.31638949,1583.2,1583.1,0.23122362]
[1745286629324,7.12667037,1583.3,1583.1,0.23122362]
[1745286629503,7.115518,1583.5,1583.1,10.48914787]
[1745286629685,7.115518,1583.5,1583.2,6.31619318]
[1745286629880,7.11509589,1583.6,1583.3,0.23122362]
[1745286630108,13.42855904,1583.8,1583.5,3.61847667]
[1745286630315,7.11435079,1583.8,1583.5,3.61847667]
[1745286630694,13.42857637,1583.8,1583.6,0.23090273]
[1745286630898,8.45720843,1583.8,1583.6,0.23090273]
[1745286631378,14.77149026,1583.8,1583.6,0.23090273]
[1745286631582,6.31434026,1583.7,1583.5,3.68161987]
[1745286631823,7.11435079,1583.8,1583.5,3.68161987]
[1745286632320,7.11435079,1583.8,1583.5,3.61847667]
[1745286632521,7.11435079,1583.8,1583.6,0.23059725]
[1745286632824,6.31446751,1583.7,1583.5,3.61847667]
[1745286632983,7.11435079,1583.8,1583.5,3.61847667]
[1745286633185,7.11393755,1583.9,1583.5,11.82013153]
[1745286633425,6.31337678,1584.0,1583.7,3.61847667]
[1745286633919,6.31386724,1583.9,1583.7,3.61847667]
[1745286634683,12.62778222,1583.9,1583.7,4.0857742]
[1745286635318,6.31386724,1583.9,1583.7,4.0857742]
[1745286635534,6.31386724,1583.9,1583.7,4.14890986]
[1745286636127,12.62769362,1583.9,1583.7,4.0857742]
[1745286636422,7.20007875,1583.8,1583.7,7.0857742]
[1745286636790,0.88615023,1583.8,1583.7,7.0857742]
[1745286636993,6.31382638,1583.9,1583.7,7.79435162]
[1745286637221,0.89719823,1583.8,1583.7,7.0857742]
[1745286637526,12.6277197,1583.9,1583.7,7.0857742]
[1745286637703,7.21112675,1583.8,1583.7,7.0857742]
[1745286637899,7.21112675,1583.8,1583.7,6.61847667]
[1745286638112,8.01132675,1583.8,1583.7,3.0]
[1745286639527,7.21112675,1583.8,1583.7,3.0]
[1745286639925,0.89719823,1583.8,1583.7,3.0]
[1745286640123,0.89719823,1583.8,1583.7,14.04819133]
[1745286640333,12.62674482,1584.0,1583.8,3.0]
[1745286640533,6.31352989,1583.9,1583.7,4.38007667]
[1745286644440,6.31392852,1583.8,1583.7,3.61847667]
[1745286644832,6.31352989,1583.9,1583.7,3.61847667]
[1745286645555,6.31336282,1584.0,1583.8,3.0]
[1745286645846,6.31392852,1583.8,1583.7,4.3277979]
[1745286646082,6.31392852,1583.8,1583.6,3.47473564]
[1745286646250,6.31392852,1583.8,1583.6,3.0]
[1745286646414,0.7851,1583.8,1583.6,3.0]
[1745286646618,7.09840831,1584.0,1583.7,3.61847667]
[1745286646832,12.62675099,1584.0,1583.7,3.84843508]
[1745286647047,6.31365811,1583.9,1583.7,4.93476782]
[1745286649412,7.09796687,1584.1,1583.8,3.0]
[1745286649619,6.3131352,1584.0,1583.8,3.0]
[1745286650233,6.31336341,1584.0,1583.8,3.0]
[1745286650433,12.62683747,1584.0,1583.8,3.0]
[1745286650686,6.31352989,1583.9,1583.8,3.0]
[1745286651580,7.21059504,1583.9,1583.8,3.0]
[1745286651875,0.89706515,1583.9,1583.8,3.0]
[1745286652242,7.09804492,1584.1,1583.8,4.42976139]
[1745286652447,0.89706515,1584.0,1583.8,4.42976139]
[1745286652983,0.89706515,1584.0,1583.9,20.86667082]
[1745286653173,0.89706515,1584.0,1583.9,21.66435646]
[1745286653379,0.1,1584.4,1584.1,3.0]
[1745286653682,0.1,1584.4,1584.3,6.61847667]
[1745286653873,0.1,1584.4,1584.3,8.01069838]
[1745286654038,0.1,1584.4,1584.3,14.55275366]
[1745286654239,0.1,1584.4,1584.3,14.54281779]
[1745286657142,0.1,1584.4,1584.3,13.15059608]
[1745286657347,6.41153749,1584.4,1584.3,9.302]
[1745286657557,0.1,1584.4,1584.3,9.302]
[1745286657889,6.41153749,1584.4,1584.3,12.92047667]
[1745286658247,0.1,1584.4,1584.3,12.92047667]
[1745286658885,0.1,1584.4,1584.3,13.69957667]
[1745286659076,0.1,1584.4,1584.3,12.92047667]
[1745286659379,0.1,1584.4,1584.3,14.56881629]
[1745286661289,0.1,1584.4,1584.3,13.15089125]
[1745286661492,7.22053749,1584.4,1584.3,0.23041458]
[1745286661851,6.31200767,1584.3,1584.0,3.53928299]
[1745286662171,0.1,1584.4,1584.1,9.93109364]
[1745286662377,0.1,1584.4,1584.2,3.0]
[1745286662586,0.1,1584.4,1584.3,6.68158816]
[1745286662897,0.1,1584.4,1584.3,15.94742767]
[1745286666160,1.0043799,1584.4,1584.3,15.94742767]